bitfinex-derivatives/quotes_ETHF0:USTF0_20250416
["timestamp","ask_amount","ask_price","bid_price","bid_amount"]
[1744762746880,1.4067,1579.2,1579.0,42.72386244]
[1744762747074,4.47455469,1579.3,1579.0,88.47970971]
[1744762747273,4.47455469,1579.3,1578.4,87.713]
[1744762747274,3.2078,1579.1,1578.1,4.47521]
[1744762747467,1.26697,1578.7,1578.5,20.76107197]
[1744762747772,3.2078,1578.8,1578.5,20.76107197]
[1744762747773,3.2078,1578.8,1578.5,8.24593972]
[1744762748079,3.2078,1579.2,1578.9,1.26676]
[1744762748275,3.19853972,1579.2,1579.0,47.258]
[1744762748467,3.19853972,1579.2,1579.0,66.23113225]
[1744762748681,3.19853972,1579.2,1579.0,93.01384727]
[1744762748870,8.13554765,1579.1,1579.0,45.75584727]
[1744762749170,8.13554765,1579.1,1579.0,52.21484727]
[1744762749574,7.62965471,1579.5,1579.0,30.43213225]
[1744762749870,24.24919287,1579.8,1579.3,3.2078]
[1744762750075,24.24919287,1579.8,1579.7,1.26616]
[1744762750278,3.2078,1580.1,1579.5,90.9738]
[1744762750464,4.47368,1580.1,1579.7,3.2078]
[1744762750671,4.47368,1580.1,1579.5,96.69774792]
[1744762750672,1.2666,1579.2,1578.9,3.2078]
[1744762750867,1.26672,1579.0,1578.9,18.97313225]
[1744762751066,0.00926028,1578.9,1578.8,1.933]
[1744762751381,0.00926028,1578.9,1578.8,18.97313225]
[1744762751575,0.0310005,1579.0,1578.8,18.96387197]
[1744762751772,0.0310005,1579.0,1578.9,20.23067197]
[1744762751979,0.0310005,1579.0,1578.9,23.43847197]
[1744762752278,0.0310005,1579.0,1578.9,25.23067197]
[1744762752978,1.26621,1579.7,1579.0,18.96387197]
[1744762753176,3.2078,1579.6,1579.1,89.5352]
[1744762753375,1.26646,1579.4,1579.2,8.2172]
[1744762753675,1.26648,1579.3,1579.2,20.72107197]
[1744762753877,1.26648,1579.3,1579.2,8.2172]
[1744762754067,0.00948497,1579.4,1579.2,27.18107197]
[1744762754273,0.00948497,1579.4,1579.3,61.03035197]
[1744762754475,0.00948497,1579.4,1579.3,59.76387197]
[1744762754976,0.00948497,1579.4,1579.3,61.03035197]
[1744762755472,0.00948497,1579.4,1579.3,66.03035197]
[1744762755674,0.00948497,1579.4,1579.3,67.90785197]
[1744762756371,1.2662,1579.7,1579.3,67.90785197]
[1744762756372,4.05906747,1580.0,1579.4,3.16601]
[1744762756674,4.05906747,1580.0,1579.9,1.266]
[1744762756979,4.05906747,1580.0,1579.9,7.726]
[1744762757171,4.05906747,1580.0,1579.9,26.68987197]
[1744762757580,4.05906747,1580.0,1579.9,28.56737197]
[1744762757876,4.05906747,1580.0,1579.9,31.77517197]
[1744762758194,6.08860121,1580.2,1580.1,1.26584]
[1744762758473,3.21250121,1580.2,1580.1,20.22971197]
[1744762758680,4.47826121,1580.2,1580.1,25.42387197]
[1744762758881,3.21250121,1580.2,1580.1,67.48971197]
[1744762759080,4.47826121,1580.2,1580.1,67.48971197]
[1744762759280,5.08279595,1580.2,1580.1,66.22387197]
[1744762759482,5.08279595,1580.2,1580.1,61.37996268]
[1744762760073,4.47826121,1580.2,1580.1,56.18580268]
[1744762760373,4.47826121,1580.2,1580.1,62.64580268]
[1744762760374,3.21250121,1580.2,1580.1,62.64580268]
[1744762760570,4.47826121,1580.2,1580.1,61.37996268]
[1744762760772,1.26576,1580.2,1580.1,6.46]
[1744762760976,0.00948497,1580.3,1580.2,1.26576]
[1744762761172,0.61440795,1580.3,1580.2,1.26576]
[1744762761372,0.61440795,1580.3,1580.2,2.99426]
[1744762761773,6.88008795,1580.3,1580.2,42.5285]
[1744762762081,6.88008795,1580.3,1580.2,40.8]
[1744762762280,7.42863212,1580.3,1580.2,40.8]
[1744762762479,1.26584,1580.1,1580.0,0.00948497]
[1744762762683,1.26584,1580.1,1580.0,8.19698497]
[1744762762883,1.87076298,1580.1,1580.0,8.19698497]
[1744762763081,1.26619,1579.7,1579.5,2.0261]
[1744762763386,1.26624,1579.6,1579.5,0.1892]
[1744762763581,3.66756298,1579.6,1579.5,0.1892]
[1744762763771,7.95029236,1579.6,1579.3,3.04506]
[1744762764075,1.26632,1579.5,1579.4,1.7786]
[1744762764283,1.2664,1579.4,1579.3,0.00948497]
[1744762764586,1.81547414,1579.4,1579.3,0.00948497]
[1744762764884,9.21679712,1579.4,1579.3,0.00948497]
[1744762765184,9.6215783,1579.4,1579.3,0.00948497]
[1744762765481,9.62233098,1579.4,1579.3,0.00948497]
[1744762765677,9.21756572,1579.4,1579.3,0.00948497]
[1744762766077,4.21756572,1579.4,1579.3,0.00948497]
[1744762766278,9.62278498,1579.4,1579.3,0.00948497]
[1744762766485,9.21756572,1579.4,1579.3,0.00948497]
[1744762766684,9.62278139,1579.4,1579.3,0.00948497]
[1744762766983,9.21756572,1579.4,1579.3,0.00948497]
[1744762767283,1.26656,1579.2,1579.1,1.8708]
[1744762767481,1.81702065,1579.2,1579.1,1.8708]
[1744762767685,0.55046065,1579.2,1579.1,1.8708]
[1744762767886,1.15538363,1579.2,1579.1,3.13744]
[1744762768077,1.15538363,1579.2,1579.1,43.93744]
[1744762768788,0.60492298,1579.2,1579.1,47.14524]
[1744762769188,2.42362359,1579.2,1579.1,42.6708]
[1744762770586,4.15192359,1579.2,1579.1,42.6708]
[1744762771282,4.55912905,1579.2,1579.1,42.6708]
[1744762771485,1.26664,1579.1,1579.0,0.00948497]
[1744762771683,1.26672,1579.0,1578.9,0.1893]
[1744762771883,1.26696,1578.7,1578.6,1.8318]
[1744762772086,1.26696,1578.7,1578.0,6.46]
[1744762772087,1.26742,1578.2,1578.0,6.46]
[1744762772281,1.82028518,1578.1,1578.0,6.46]
[1744762772482,1.82020347,1578.1,1578.0,6.46]
[1744762772683,2.42512645,1578.1,1578.0,6.46]
[1744762773089,2.42512645,1578.1,1578.0,8.3449]
[1744762773894,4.27242645,1578.1,1578.0,8.3449]
[1744762774087,4.27242645,1578.1,1578.0,6.46]
[1744762774393,3.00495317,1578.1,1578.0,48.52752]
[1744762774589,3.00495317,1578.1,1578.0,53.52752]
[1744762774590,1.15765317,1578.1,1578.0,53.52752]
[1744762775092,10.13891638,1578.8,1578.7,1.26696]
[1744762775393,10.54627128,1578.8,1578.7,1.26696]
[1744762775590,10.13891638,1578.8,1578.7,6.26696]
[1744762775789,10.13891638,1578.8,1578.7,8.16576]
[1744762776886,8.82596638,1578.8,1578.7,8.16576]
[1744762777392,8.82596638,1578.8,1578.7,48.96576]
[1744762777589,0.00948497,1578.9,1578.8,1.26688]
[1744762777897,1.27628497,1578.9,1578.8,6.451]
[1744762778095,0.00948497,1578.9,1578.8,7.71788]
[1744762778295,1.27628497,1578.9,1578.8,47.251]
[1744762778690,0.00948497,1578.9,1578.8,48.51788]
[1744762778891,4.48408497,1578.9,1578.8,40.8]
[1744762779096,6.69404007,1578.9,1578.8,40.8]
[1744762780692,1.26688,1578.8,1578.7,8.3498]
[1744762780897,3.45232578,1578.8,1578.7,8.3498]
[1744762781198,3.45232578,1578.8,1578.7,6.451]
[1744762781397,1.26696,1578.7,1578.6,2.54328497]
[1744762781695,6.66020578,1578.7,1578.6,2.54328497]
[1744762782090,1.26693,1578.8,1578.6,1.91638497]
[1744762782285,1.26696,1578.7,1578.6,1.91638497]
[1744762782794,1.67400462,1578.7,1578.6,1.91638497]
[1744762783196,1.26696,1578.7,1578.6,1.91638497]
[1744762783495,1.26696,1578.7,1578.6,3.18342497]
[1744762783696,3.04623,1578.8,1578.7,1.26696]
[1744762783886,4.50848497,1578.9,1578.7,1.9069]
[1744762784089,4.50848497,1578.9,1578.8,6.451]
[1744762784287,4.9156758,1578.9,1578.8,6.451]
[1744762784684,4.50848497,1578.9,1578.8,6.451]
[1744762784884,1.30068497,1578.9,1578.8,7.71788]
[1744762785090,0.03386497,1578.9,1578.8,10.92568]
[1744762785291,0.03386497,1578.9,1578.8,15.92568]
[1744762785493,0.03386497,1578.9,1578.8,17.81338]
[1744762786489,0.03386497,1578.9,1578.8,19.60538]
[1744762786788,0.03386497,1578.9,1578.8,14.60538]
[1744762786991,0.03386497,1578.9,1578.8,19.60538]
[1744762787190,0.63335317,1578.9,1578.8,19.60538]
[1744762787588,2.44554346,1578.9,1578.8,9.60558]
[1744762787793,1.26688,1578.8,1578.7,1.9069]
[1744762788002,4.20885849,1578.8,1578.7,8.3579]
[1744762788399,8.6634682,1578.8,1578.7,6.451]
[1744762788600,4.20914139,1578.8,1578.7,6.451]
[1744762789209,2.41242786,1578.8,1578.7,6.451]
[1744762789401,1.14554786,1578.8,1578.7,9.57236]
[1744762789904,1.14554786,1578.8,1578.7,12.78016]
[1744762790298,2.41242786,1578.8,1578.7,12.78016]
[1744762790506,3.22030016,1578.8,1578.7,12.41939694]
[1744762790706,3.22030016,1578.8,1578.7,11.15243694]
[1744762790897,5.01210016,1578.8,1578.7,6.451]
[1744762791409,4.41261196,1578.8,1578.7,6.451]
[1744762791605,12.61775385,1578.8,1578.7,6.451]
[1744762791915,1.26704,1578.6,1578.5,1.44677]
[1744762792107,1.81309966,1578.6,1578.5,7.89777]
[1744762792290,0.54605966,1578.6,1578.5,7.89777]
[1744762792705,2.40088172,1578.6,1578.5,48.69777]
[1744762792907,1.13384172,1578.6,1578.5,48.69777]
[1744762793205,2.40088172,1578.6,1578.5,48.69777]
[1744762793505,2.81051432,1578.6,1578.5,48.69777]
[1744762793902,2.81051432,1578.6,1578.5,48.51807]
[1744762793903,2.81281131,1578.6,1578.5,48.51807]
[1744762794105,3.21105101,1578.6,1578.5,47.251]
[1744762794298,3.62060619,1578.6,1578.5,47.251]
[1744762794809,3.62060619,1578.6,1578.5,49.0159]
[1744762795300,3.62060619,1578.6,1578.5,50.28302]
[1744762795497,3.62060619,1578.6,1578.5,49.0159]
[1744762795705,6.82840619,1578.6,1578.5,47.251]
[1744762795904,3.62060619,1578.6,1578.5,47.251]
[1744762796302,3.62060619,1578.6,1578.5,48.51812]
[1744762796608,3.62060619,1578.6,1578.5,47.251]
[1744762797209,1.26783,1577.7,1577.6,1.26782]
[1744762797404,1.26783,1577.7,1577.6,1.8885]
[1744762797603,1.26784,1577.6,1577.5,94.008]
[1744762797809,4.19584158,1577.6,1577.5,94.008]
[1744762798207,1.13590158,1577.6,1577.5,137.96443]
[1744762798507,1.13543315,1577.6,1577.5,137.96443]
[1744762798810,2.40327315,1577.6,1577.5,136.6965]
[1744762799010,2.40327315,1577.6,1577.5,50.14843]
[1744762799205,2.40327315,1577.6,1577.5,40.8]
[1744762799704,2.81199092,1577.6,1577.5,40.8]
[1744762800104,4.69259092,1577.6,1577.5,40.8]
[1744762800410,11.59450092,1577.6,1577.0,6.193]
[1744762800604,1.26825,1577.1,1577.0,6.193]
[1744762800800,0.54765109,1577.1,1576.7,3.2078]
[1744762801000,0.54702267,1577.0,1576.9,1.26841]
[1744762801309,1.13482867,1577.0,1576.9,40.8]
[1744762801506,1.13488113,1577.0,1576.9,40.8]
[1744762801717,0.58778206,1577.0,1576.9,50.27621]
[1744762802206,1.8806,1577.3,1576.9,44.0078]
[1744762802412,0.54618511,1577.2,1577.0,9.33471]
[1744762802608,4.47585,1577.4,1577.2,1.26812]
[1744762802803,4.47585,1577.4,1577.3,1.9413]
[1744762803004,4.33943751,1577.4,1577.3,9.40239]
[1744762803301,0.58593357,1577.4,1577.3,14.40239]
[1744762803502,1.7848,1577.7,1577.3,13.1343]
[1744762803704,1.26793,1577.5,1577.4,8.1363]
[1744762803903,3.05267,1577.6,1577.5,1.26793]
[1744762804105,1.7848,1577.6,1577.4,9.40426]
[1744762804300,1.26793,1577.5,1577.4,8.1363]
[1744762804508,1.26793,1577.5,1577.4,6.195]
[1744762804711,1.26809,1577.3,1577.2,1.9413]
[1744762805309,1.7848,1577.4,1577.2,1.9413]
[1744762805611,0.00948497,1577.8,1577.7,1.26776]
[1744762805913,0.00948497,1577.8,1577.7,7.46276]
[1744762806413,1.27716497,1577.8,1577.7,42.6929]
[1744762806712,9.19034035,1577.8,1577.7,40.8]
[1744762806913,3.66554682,1577.8,1577.7,40.8]
[1744762807306,9.19060567,1577.8,1577.7,40.8]
[1744762807511,1.26801,1577.4,1577.3,8.0879]
[1744762807809,3.16949,1577.7,1577.3,8.0879]
[1744762808010,1.26793,1577.5,1577.4,1.8929]
[1744762808411,1.26793,1577.5,1577.4,42.6929]
[1744762808810,1.8536879,1577.5,1577.4,42.6929]
[1744762809006,1.26809,1577.3,1577.2,6.195]
[1744762809515,1.26809,1577.3,1577.2,48.8882]
[1744762809717,3.77099423,1577.3,1577.2,40.8]
[1744762810018,1.26825,1577.1,1577.0,9.4038]
[1744762810203,1.26825,1577.1,1577.0,6.196]
[1744762810515,6.85345832,1577.1,1576.7,3.2078]
[1744762810817,1.2686,1576.7,1576.6,1.26861]
[1744762811017,1.26865,1576.6,1576.5,7.46467]
[1744762811314,1.26865,1576.6,1576.5,6.196]
[1744762811509,1.26873,1576.5,1576.4,4.47655]
[1744762811704,1.26872,1576.6,1576.5,1.26873]
[1744762811909,1.26872,1576.6,1576.4,9.4038]
[1744762811910,1.26858,1576.7,1576.4,12.57577]
[1744762812110,0.00948497,1576.8,1576.4,12.57577]
[1744762812316,1.26861,1576.7,1576.6,1.26863]
[1744762812514,0.00948497,1576.8,1576.6,9.4048]
[1744762812814,0.00948497,1576.8,1576.7,1.26857]
[1744762813509,1.27797497,1576.8,1576.7,1.26857]
[1744762813911,0.00948497,1576.8,1576.7,1.26857]
[1744762814111,1.26814,1577.3,1577.2,1.26812]
[1744762814317,9.47323189,1577.4,1577.3,1.26809]
[1744762814520,8.20514189,1577.4,1577.3,1.26809]
[1744762815114,8.20514189,1577.4,1577.2,51.48239497]
[1744762815423,1.26809,1577.3,1577.2,47.00648497]
[1744762815718,3.17259,1577.3,1577.2,47.00648497]
[1744762816110,0.58409378,1577.3,1577.2,48.27465497]
[1744762816306,0.58409378,1577.3,1577.2,51.48245497]
[1744762816520,9.47320189,1577.4,1577.3,1.26809]
[1744762816722,8.20514189,1577.4,1577.3,1.26809]
[1744762817116,8.23101189,1577.4,1577.3,1.26809]
[1744762817317,9.49902189,1577.4,1577.3,1.26809]
[1744762817521,0.02587,1577.4,1577.3,1.26809]
[1744762817919,0.00948497,1577.5,1577.4,1.26801]
[1744762818125,0.00948497,1577.5,1577.3,1.26802]
[1744762818325,1.27745497,1577.5,1577.4,1.26801]
[1744762818621,0.00948497,1577.5,1577.4,1.26801]
[1744762818826,0.00948497,1577.5,1577.4,6.26801]
[1744762819420,0.00948497,1577.5,1577.4,1.26801]
[1744762819725,1.26809,1577.3,1577.2,40.80948497]
[1744762820425,4.48526497,1577.5,1577.4,1.26801]
[1744762820723,1.26804,1577.4,1577.3,1.26802]
[1744762821426,1.27746497,1577.5,1577.4,1.26801]
[1744762821631,1.26806,1577.4,1577.3,1.26804]
[1744762822123,0.00948497,1577.5,1577.3,3.2078]
[1744762822316,1.26809,1577.3,1577.2,47.00648497]
[1744762822516,1.26809,1577.3,1577.2,6.20648497]
[1744762822717,3.17939,1577.3,1577.2,6.20648497]
[1744762822926,1.85490007,1577.4,1577.3,1.26809]
[1744762823325,1.85488007,1577.4,1577.3,1.26809]
[1744762823526,0.58683007,1577.4,1577.3,45.27589]
[1744762823725,0.58683007,1577.4,1577.3,47.05269]
[1744762823923,1.85484007,1577.4,1577.3,43.84489]
[1744762824125,0.58683007,1577.4,1577.3,47.05269]
[1744762824424,0.00948497,1577.5,1577.4,1.26801]
[1744762824634,0.00948497,1577.5,1577.4,3.00361]
[1744762824819,0.59727805,1577.5,1577.4,6.21141]
[1744762825125,0.59727805,1577.5,1577.4,3.00361]
[1744762825325,0.59727805,1577.5,1577.4,43.80361]
[1744762826425,0.59727805,1577.5,1577.4,52.01141]
[1744762827124,2.39327578,1577.5,1577.4,43.80361]
[1744762827631,1.12534578,1577.5,1577.4,43.80361]
[1744762828130,0.59727805,1577.5,1577.4,52.01141]
[1744762828525,0.00948497,1577.5,1577.4,52.01141]
[1744762830430,1.2674,1578.2,1578.1,1.26735]
[1744762830630,6.13406397,1578.4,1578.3,1.26728]
[1744762830926,6.12480369,1578.4,1578.3,1.26728]
[1744762831125,6.12480369,1578.4,1578.3,42.06728]
[1744762831319,6.71503278,1578.4,1578.3,42.06728]
[1744762831525,8.51028103,1578.4,1578.3,46.904]
[1744762831730,10.31168103,1578.4,1578.3,46.904]
[1744762831929,6.71503278,1578.4,1578.3,48.17128]
[1744762832634,8.20514189,1578.6,1578.3,51.904]
[1744762832830,8.20514189,1578.6,1578.5,4.47492]
[1744762833033,7.86901461,1578.6,1578.5,92.35092]
[1744762833235,7.86901461,1578.6,1578.5,97.35092]
[1744762833431,7.86901461,1578.6,1578.5,138.15092]
[1744762833728,0.00948497,1578.7,1578.6,1.26704]
[1744762834029,0.00948497,1578.7,1578.6,7.36904]
[1744762834633,0.00948497,1578.7,1578.6,48.16904]
[1744762835632,0.00948497,1578.7,1578.6,42.06704]
[1744762835834,0.00948497,1578.7,1578.6,48.16904]
[1744762836236,0.00948497,1578.7,1578.6,46.902]
[1744762836528,1.27644497,1578.7,1578.6,48.16904]
[1744762836735,0.00948497,1578.7,1578.6,50.00814]
[1744762840731,0.09578099,1578.7,1578.6,50.00814]
[1744762841334,0.09578099,1578.7,1578.6,46.902]
[1744762841335,1.36274099,1578.7,1578.6,46.902]
[1744762842239,6.36274099,1578.7,1578.6,40.8]
[1744762842541,6.36274099,1578.7,1578.6,46.899]
[1744762843036,8.16094099,1578.7,1578.6,46.899]
[1744762843334,8.16094099,1578.7,1578.6,40.8]
[1744762843539,1.26704,1578.6,1578.5,2.534]
[1744762843834,1.26728,1578.3,1578.2,1.27681497]
[1744762844037,1.26728,1578.3,1578.2,7.37581497]
[1744762844339,1.26728,1578.3,1578.2,6.10848497]
[1744762844539,1.26728,1578.3,1578.2,46.90848497]
[1744762844831,1.35357602,1578.3,1578.2,46.90848497]
[1744762845342,1.35357602,1578.3,1578.2,40.80948497]
[1744762845535,1.35357602,1578.3,1578.2,46.90948497]
[1744762846034,3.23377602,1578.3,1578.2,46.90948497]
[1744762846834,1.96649602,1578.3,1578.2,48.17684497]
[1744762847436,1.96649602,1578.3,1578.2,49.98154497]
[1744762848334,3.23377602,1578.3,1578.2,48.17684497]
[1744762848538,3.23377602,1578.3,1578.2,46.90948497]
[1744762848928,1.96649602,1578.3,1578.2,46.90948497]
[1744762849540,3.23377602,1578.3,1578.2,46.90948497]
[1744762850034,1.96649602,1578.3,1578.2,40.80948497]
[1744762850232,3.23377602,1578.3,1578.2,40.80948497]
[1744762850938,1.96649602,1578.3,1578.2,42.07684497]
[1744762851134,1.96649602,1578.3,1578.2,43.82044497]
[1744762851340,3.23377602,1578.3,1578.2,40.80948497]
[1744762852338,0.08629602,1578.3,1578.2,45.28464497]
[1744762852534,0.08629602,1578.3,1578.2,47.16274497]
[1744762852939,0.08629602,1578.3,1578.2,49.02134497]
[1744762853934,0.08629602,1578.3,1578.2,54.02134497]
[1744762854145,0.00948497,1578.7,1578.6,1.26704]
[1744762854440,1.81518497,1578.7,1578.6,10.57484]
[1744762854639,0.00948497,1578.7,1578.6,10.57484]
[1744762854839,0.00948497,1578.7,1578.6,98.39684]
[1744762855043,0.00948497,1578.7,1578.6,105.16154]
[1744762855641,0.00948497,1578.7,1578.6,145.96154]
[1744762855840,1.7881,1579.5,1579.3,1.26643]
[1744762856036,3.65471248,1579.4,1579.3,1.26648]
[1744762856346,3.65471248,1579.4,1579.3,6.1]
[1744762856641,2.38827248,1579.4,1579.3,7.36648]
[1744762857148,2.38827248,1579.4,1579.3,10.57428]
[1744762857342,0.58257248,1579.4,1579.3,7.36648]
[1744762857542,1.843,1579.4,1579.3,7.36648]
[1744762857739,1.843,1579.4,1579.3,48.16648]
[1744762857942,0.00948497,1579.5,1579.4,1.4234]
[1744762858337,1.85866253,1579.5,1579.4,1.4234]
[1744762858843,1.85866253,1579.5,1579.4,42.2234]
[1744762859350,0.59234253,1579.5,1579.4,42.2234]
[1744762859540,0.59234253,1579.5,1579.4,44.1593]
[1744762860247,0.00948497,1579.5,1579.4,44.1593]
[1744762861445,4.97e-06,1579.5,1579.4,136.9523]
[1744762861651,1.8849,1580.1,1580.0,1.26587]
[1744762861945,0.5830011,1580.1,1580.0,10.31167]
[1744762862448,0.5830011,1580.1,1580.0,56.11167]
[1744762862648,0.00948497,1580.2,1580.1,1.26584]
[1744762863150,3.16020497,1580.2,1580.0,7.11340497]
[1744762863353,1.89438497,1580.2,1580.1,1.26584]
[1744762863546,1.89438497,1580.2,1580.1,4.47364]
[1744762863847,0.00948497,1580.2,1580.1,4.47364]
[1744762864042,0.00948497,1580.2,1580.1,11.28804]
[1744762864244,0.00948497,1580.2,1580.1,52.08804]
[1744762864446,0.00948497,1580.2,1580.1,45.27364]
[1744762864645,1.77318497,1580.2,1580.1,45.27364]
[1744762865049,8.03894497,1580.2,1580.1,46.637]
[1744762865249,11.24674497,1580.2,1580.1,46.637]
[1744762865451,8.61993255,1580.2,1580.1,46.637]
[1744762866246,2.35417255,1580.2,1580.1,46.637]
[1744762866454,2.35417255,1580.2,1580.1,47.90284]
[1744762866646,1.77318497,1580.2,1580.1,51.11064]
[1744762866842,0.00948497,1580.2,1580.1,51.11064]
[1744762867145,0.00948497,1580.2,1580.1,56.11064]
[1744762867352,0.00948497,1580.2,1580.1,57.87474]
[1744762868751,0.00948497,1580.2,1580.1,51.11064]
[1744762868958,6.27524497,1580.2,1580.1,46.636]
[1744762869348,0.00948497,1580.2,1580.1,47.90184]
[1744762869545,3.12924497,1580.2,1580.1,46.636]
[1744762869854,8.70860903,1580.2,1580.1,46.636]
[1744762870054,2.44284903,1580.2,1580.1,47.90184]
[1744762870255,2.44284903,1580.2,1580.1,46.636]
[1744762870456,3.70860903,1580.2,1580.1,46.636]
[1744762871255,2.44284903,1580.2,1580.1,47.90184]
[1744762871460,1.86348497,1580.2,1580.1,46.636]
[1744762871657,3.12924497,1580.2,1580.1,47.90184]
[1744762871858,1.86348497,1580.2,1580.1,47.90184]
[1744762872053,3.12924497,1580.2,1580.1,47.90184]
[1744762872255,3.12924497,1580.2,1580.1,46.636]
[1744762872861,3.70811187,1580.2,1580.1,46.636]
[1744762873260,3.12924497,1580.2,1580.1,46.636]
[1744762873660,1.86348497,1580.2,1580.1,47.90184]
[1744762874159,1.86348497,1580.2,1580.1,49.74424]
[1744762874862,0.00948497,1580.2,1580.1,52.95204]
[1744762875055,4.97e-06,1580.2,1580.1,57.95204]
[1744762875256,4.97e-06,1580.2,1580.1,61.76334]
[1744762876263,1.8218,1580.8,1580.7,1.26536]
[1744762876464,1.8218,1580.8,1580.7,10.30816]
[1744762876962,1.8218,1580.8,1580.7,12.17176]
[1744762877256,8.18229567,1581.1,1581.0,1.26512]
[1744762877461,1.83575215,1581.2,1581.1,1.26504]
[1744762877658,0.00625215,1581.2,1581.1,1.26504]
[1744762877859,0.00625215,1581.2,1581.1,4.47284]
[1744762878060,0.00625215,1581.2,1581.1,45.27284]
[1744762878654,8.18229567,1581.5,1581.1,45.27284]
[1744762878655,8.18229567,1581.5,1581.4,1.2648]
[1744762878851,8.18229567,1581.5,1581.4,94.8138]
[1744762879155,10.98389567,1581.5,1581.4,94.8138]
[1744762879354,10.98389567,1581.5,1581.4,135.6138]
[1744762879662,8.18229567,1581.5,1581.4,138.8216]
[1744762879959,6.56916567,1581.5,1581.4,143.8216]
[1744762880159,8.7469023,1581.6,1581.5,1.26472]
[1744762880358,8.7469023,1581.6,1581.5,9.12222]
[1744762880657,12.19727553,1581.9,1581.5,9.12222]
[1744762880658,5.58730834,1581.9,1581.8,1.26448]
[1744762880857,5.84041694,1582.8,1582.7,1.26376]
[1744762881060,5.84041694,1582.8,1582.7,10.30456]
[1744762881560,5.84041694,1582.8,1582.7,13.32606]
[1744762881958,5.84041694,1582.8,1582.7,12.0623]
[1744762882165,1.26376,1582.7,1582.6,0.00948497]
[1744762882463,2.8143,1582.7,1582.6,0.00948497]
[1744762882665,9.07806,1582.7,1582.6,0.00948497]
[1744762882961,9.64250485,1582.7,1582.6,0.00948497]
[1744762883260,8.37874485,1582.7,1582.4,1.0035491]
[1744762883561,1.2639,1582.6,1582.4,1.0035491]
[1744762883859,2.8143,1582.5,1582.4,2.2675491]
[1744762884264,2.8143,1582.5,1582.4,43.0675491]
[1744762884451,0.00948497,1582.6,1582.5,1.26392]
[1744762884657,0.00948497,1582.6,1582.5,4.03492]
[1744762884967,0.00948497,1582.6,1582.5,12.24272]
[1744762885459,2.8366,1583.1,1582.6,3.15946]
[1744762885655,2.8366,1583.1,1583.0,3.2078]
[1744762885858,2.8366,1583.1,1583.0,10.30132]
[1744762886165,10.37899,1583.5,1583.2,1.26331]
[1744762886464,4.66267272,1583.4,1583.3,46.63]
[1744762886666,3.39947272,1583.4,1583.3,46.63]
[1744762886854,3.39947272,1583.4,1583.3,47.89328]
[1744762887661,2.8366,1583.4,1583.3,47.89328]
[1744762888163,7.22227257,1583.9,1583.8,1.26288]
[1744762888164,4.06525257,1583.9,1583.8,1.26288]
[1744762888364,4.06525257,1583.9,1583.8,10.20068]
[1744762888563,1.26259,1584.2,1583.9,1.26276]
[1744762888860,2.9433,1584.1,1584.0,40.8]
[1744762889059,4.20594,1584.1,1584.0,46.53]
[1744762889257,9.76756761,1584.1,1584.0,40.8]
[1744762890457,14.81837761,1584.1,1583.0,6.36645]
[1744762890658,3.2078,1583.6,1583.0,8.668]
[1744762890868,5.7654,1583.5,1583.0,8.668]
[1744762891069,7.02856,1583.5,1583.1,3.15861]
[1744762891265,5.7654,1583.5,1583.2,8.88641]
[1744762891470,7.03800497,1583.5,1583.4,1.2632]
[1744762891656,5.77488497,1583.5,1583.3,1.26322]
[1744762891862,5.77488497,1583.5,1583.2,5.73748497]
[1744762892262,1.26325,1583.4,1583.2,7.00078497]
[1744762892562,1.26328,1583.3,1583.2,5.73748497]
[1744762892872,5.77488497,1583.5,1583.4,1.2632]
[1744762893161,0.00948497,1583.5,1583.4,1.2632]
[1744762893364,0.00948497,1583.5,1583.4,4.1909]
[1744762894366,0.00948497,1583.5,1583.4,44.9909]
[1744762895260,9.0087,1584.2,1584.0,1.26266]
[1744762895570,2.9929,1584.1,1584.0,1.26266]
[1744762895767,3.15544,1584.7,1584.4,1.26235]
[1744762895768,3.2078,1584.7,1584.4,1.26235]
[1744762895960,4.25526,1584.5,1584.3,1.26245]
[1744762896164,2.9929,1584.5,1584.4,1.2624]
[1744762896668,1.26193,1585.0,1584.7,1.26211]
[1744762896974,2.9929,1585.0,1584.8,40.8]
[1744762897169,1.26201,1584.9,1584.8,40.8]
[1744762897673,6.26201,1584.9,1584.8,40.8]
[1744762897873,2.8119,1584.9,1584.8,40.8]
[1744762898069,3.2078,1585.1,1584.8,40.8]
[1744762898265,4.46981,1584.9,1584.8,40.8]
[1744762898465,3.2078,1584.9,1584.8,42.06208]
[1744762898660,4.07387,1585.0,1584.8,42.06208]
[1744762898867,2.8119,1585.0,1584.8,47.78805]
[1744762899074,1.26201,1584.9,1584.8,47.78805]
[1744762899274,2.8119,1585.0,1584.9,1.26201]
[1744762899476,2.8119,1585.0,1584.8,46.526]
[1744762899771,2.8119,1585.0,1584.9,1.26201]
[1744762900167,2.8119,1585.0,1584.9,4.08191]
[1744762900976,3.2078,1585.1,1585.0,1.26193]
[1744762901176,6.0177,1585.1,1585.0,1.26193]
[1744762902065,6.0177,1585.1,1584.9,4.08185]
[1744762902274,1.26195,1585.0,1584.8,49.26396]
[1744762902472,4.07191,1584.9,1584.8,48.0019]
[1744762902674,4.07191,1584.9,1584.8,46.526]
[1744762903175,4.07191,1584.9,1584.8,47.78808]
[1744762903378,2.8099,1584.9,1584.8,47.78808]
[1744762903578,4.46971,1585.1,1585.0,1.26193]
[1744762903779,6.0882,1585.1,1585.0,1.26193]
[1744762904173,2.8804,1585.1,1585.0,1.26193]
[1744762904682,1.26201,1584.9,1584.8,40.8]
[1744762904873,4.46981,1584.9,1584.8,40.8]
[1744762905181,10.03224679,1584.9,1584.8,40.8]
[1744762905381,3.77023679,1584.9,1584.8,42.06208]
[1744762905675,1.26201,1584.9,1584.8,42.06208]
[1744762905878,2.8804,1584.9,1584.8,42.06208]
[1744762906085,5.7106,1585.2,1584.8,40.8]
[1744762906380,8.5991,1585.2,1585.1,1.26185]
[1744762906582,9.16265323,1585.2,1585.1,1.26185]
[1744762906777,10.42442323,1585.2,1585.1,1.26185]
[1744762907084,10.42442323,1585.2,1585.0,5.722]